fUST/lending_fUST_20241001
["ID","MTS","AMOUNT","RATE_DAILY","PERIOD"]
[339620149,1727754643622,-282.04784,0.00016328,2]
[339620150,1727754643632,-169.265207,0.00016328,2]
[339620151,1727754643641,-1169.80021979,0.00016328,2]
[339620152,1727754643651,-152.560894,0.00016333,2]
[339620153,1727754643660,-152.003829,0.00016333,2]
[339620154,1727754643670,-211.35513414,0.00016338,2]
[339620155,1727754643679,-1110.666251,0.00016364,2]
[339620156,1727754643689,-151.0,0.00016364,2]
[339620157,1727754643699,-204.363137,0.00016364,2]
[339620158,1727754643708,-151.0,0.00016364,2]
[339620159,1727754643718,-422.796574,0.00016364,2]
[339620160,1727754643727,-422.796574,0.00016364,2]
[339620161,1727754643737,-159.472213,0.00016364,2]
[339620162,1727754643748,-242.426973,0.00016364,2]
[339620163,1727754643758,-242.426973,0.00016364,2]
[339620164,1727754643768,-500.67140053,0.00016373,2]
[339620165,1727754643779,-500.0,0.00016373,2]
[339620166,1727754643789,-500.53711529,0.00016373,2]
[339620167,1727754643798,-500.81958947,0.00016373,2]
[339620168,1727754643807,-647.93843106,0.00016373,2]
[339620169,1727754643818,-306.0,0.00016382,2]
[339620170,1727754643828,-153.0,0.00016382,2]
[339620171,1727754643837,-153.3863695,0.00016382,2]
[339620172,1727754643848,-153.0,0.00016382,2]
[339620173,1727754643858,-153.0,0.00016382,2]
[339620174,1727754643869,-153.0,0.00016382,2]
[339620175,1727754643878,-153.0,0.00016382,2]
[339620176,1727754643887,-153.0,0.00016382,2]
[339620177,1727754643897,-16048.631327,0.00016388,2]
[339620178,1727754643908,-49061.9758227,0.00016388,2]
[339620179,1727754643917,-151.910667,0.00016399,2]
[339620180,1727754643927,-422.796574,0.00016399,2]
[339620181,1727754643936,-422.796574,0.00016399,2]
[339620182,1727754643945,-422.796574,0.00016399,2]
[339620183,1727754643955,-422.796574,0.00016399,2]
[339620184,1727754643964,-422.796574,0.00016399,2]
[339620185,1727754643974,-422.796574,0.00016399,2]
[339620186,1727754643983,-422.796574,0.00016399,2]
[339620187,1727754643992,-422.796574,0.00016399,2]
[339620188,1727754644003,-242.426973,0.00016399,2]
[339620189,1727754644013,-242.426973,0.00016399,2]
[339620190,1727754644024,-242.426973,0.00016399,2]
[339620191,1727754644033,-242.426973,0.00016399,2]
[339620192,1727754644043,-242.426973,0.00016399,2]
[339620193,1727754644052,-242.426973,0.00016399,2]
[339620194,1727754644064,-242.426973,0.00016399,2]
[339620195,1727754644075,-242.426973,0.00016399,2]
[339620196,1727754644084,-242.426973,0.00016399,2]
[339620197,1727754644094,-242.42697,0.00016399,2]
[339620198,1727754644104,-385.0,0.000164,2]
[339620199,1727754644113,-150.112233,0.000164,2]
[339620200,1727754644123,-150.112233,0.000164,2]
[339620201,1727754644132,-150.112233,0.000164,2]
[339620202,1727754644141,-150.112233,0.000164,2]
[339620203,1727754644150,-150.112233,0.000164,2]
[339620204,1727754644160,-150.112233,0.000164,2]
[339620205,1727754644170,-150.112233,0.000164,2]
[339620206,1727754644179,-150.112233,0.000164,2]
[339620207,1727754644189,-151.997844,0.000164,2]
[339620208,1727754644200,-152.66122,0.000164,2]
[339620209,1727754644209,-162.305704,0.000164,2]
[339620210,1727754644219,-422.796574,0.000164,2]
[339620211,1727754644228,-422.796579,0.000164,2]
[339620212,1727754644238,-151.0,0.00016408,2]
[339620213,1727754644248,-668.61,0.00016416,2]
[339620214,1727754644258,-151.0,0.00016417,2]
[339620215,1727754644268,-151.0,0.00016417,2]
[339620216,1727754644278,-151.0,0.00016417,2]
[339620217,1727754644287,-151.0,0.00016417,2]
[339620218,1727754644296,-16048.631327,0.0001642,2]
[339620219,1727754644306,-49061.9758227,0.0001642,2]
[339620220,1727754644316,-1128.4164496,0.00016427,2]
[339620221,1727754644326,-44071.45260896,0.00016428,2]
[339620230,1727754646144,-151.0,0.0001299,2]
[339620232,1727754646154,-380.239394,0.0001299,2]
[339620234,1727754646164,-227.13861,0.00013,2]
[339620236,1727754646174,-380.239394,0.00013,2]
[339620238,1727754646183,-380.239394,0.00013137,2]
[339620240,1727754646193,-380.239394,0.00013471,2]
[339620242,1727754646202,-502.95547008,0.00015939,2]
[339620244,1727754646213,-84317.59800704,0.00016428,2]
[339620246,1727754646222,-98123.9516454,0.00016428,2]
[339620248,1727754646231,-10974.0,0.0001643,2]
[339620250,1727754646241,-5000.0,0.00016438,2]
[339620252,1727754646252,-500.0,0.00016438,2]
[339620255,1727754646262,-500.0,0.00016438,2]
[339620258,1727754646273,-218.89241174,0.00016438,2]
[339620261,1727754646283,-500.77565512,0.00016438,2]
[339620264,1727754646293,-501.81236993,0.00016438,2]
[339620267,1727754646302,-500.0,0.00016438,2]
[339620270,1727754646312,-500.0,0.00016438,2]
[339620273,1727754646321,-500.0,0.00016438,2]
[339620276,1727754646331,-555.99048143,0.00016438,2]
[339620279,1727754646340,-500.0,0.00016438,2]
[339620282,1727754646351,-188.64431193,0.00016438,2]
[339620285,1727754646361,-500.0,0.00016438,2]
[339620316,1727754646514,-501.44426281,0.00016438,2]
[339620319,1727754646534,-501.86047007,0.00016438,2]
[339620321,1727754646544,-500.0,0.00016438,2]
[339620323,1727754646554,-655.19,0.00016438,2]
[339620325,1727754646564,-500.0,0.00016438,2]
[339620327,1727754646574,-501.19549106,0.00016438,2]
[339620329,1727754646583,-500.0,0.00016438,2]
[339620331,1727754646593,-471.57977939,0.00016438,2]
[339620333,1727754646603,-500.0,0.00016438,2]
[339620335,1727754646611,-503.40901481,0.00016438,2]
[339620337,1727754646623,-502.47365025,0.00016438,2]
[339620339,1727754646633,-598.3880079,0.00016438,2]
[339620341,1727754646642,-505.47679485,0.00016438,2]
[339620343,1727754646652,-500.0,0.00016438,2]
[339620345,1727754646661,-500.0,0.00016438,2]
[339620347,1727754646671,-500.0,0.00016438,2]
[339620349,1727754646680,-500.0,0.00016438,2]
[339620351,1727754646690,-506.98969088,0.00016438,2]
[339620353,1727754646700,-501.67010791,0.00016438,2]
[339620355,1727754646710,-500.0,0.00016438,2]
[339620357,1727754646720,-500.0,0.00016438,2]
[339620359,1727754646729,-500.0,0.00016438,2]
[339620361,1727754646738,-500.0,0.00016438,2]
[339620363,1727754646748,-500.0,0.00016438,2]
[339620365,1727754646758,-500.0,0.00016438,2]
[339620367,1727754646768,-689.26,0.00016438,2]
[339620369,1727754646777,-506.96,0.00016438,2]
[339620371,1727754646787,-515.14422906,0.00016438,2]
[339620373,1727754646797,-505.64895886,0.00016438,2]
[339620375,1727754646806,-508.47739868,0.00016438,2]
[339620377,1727754646816,-500.0,0.00016438,2]
[339620379,1727754646825,-502.88988103,0.00016438,2]
[339620381,1727754646835,-512.78482752,0.00016438,2]
[339620383,1727754646845,-500.0,0.00016438,2]
[339620385,1727754646855,-500.0,0.00016438,2]
[339620387,1727754646865,-500.0,0.00016438,2]
[339620389,1727754646874,-500.0,0.00016438,2]
[339620391,1727754646884,-522.03,0.00016438,2]
[339620393,1727754646894,-500.0,0.00016438,2]
[339620395,1727754646903,-500.0,0.00016438,2]
[339620397,1727754646914,-500.0,0.00016438,2]
[339620399,1727754646923,-500.0,0.00016438,2]
[339620402,1727754646934,-501.6431812,0.00016438,2]
[339620404,1727754646944,-500.0,0.00016438,2]
[339620405,1727754646953,-500.0,0.00016438,2]
[339620407,1727754646963,-500.0,0.00016438,2]
[339620409,1727754646973,-500.0,0.00016438,2]
[339620411,1727754646982,-501.04595581,0.00016438,2]
[339620413,1727754646993,-500.0,0.00016438,2]
[339620415,1727754647002,-501.88626306,0.00016438,2]
[339620417,1727754647013,-501.90173198,0.00016438,2]
[339620419,1727754647023,-500.0,0.00016438,2]
[339620422,1727754647034,-506.1876791,0.00016438,2]
[339620424,1727754647044,-502.44762288,0.00016438,2]
[339620425,1727754647054,-503.52588198,0.00016438,2]
[339620427,1727754647064,-188.46531457,0.00016438,2]
[339620428,1727754647074,-500.0,0.00016438,2]
[339620429,1727754647085,-500.0,0.00016438,5]
[339620430,1727754647096,-500.0,0.00016438,2]
[339620431,1727754647106,-500.79389681,0.00016438,2]
[339620432,1727754647116,-501.98470825,0.00016438,2]
[339620433,1727754647125,-500.0,0.00016438,2]
[339620434,1727754647135,-500.0,0.00016438,2]
[339620435,1727754647145,-500.0,0.00016438,2]
[339620436,1727754647157,-235.40870109,0.00016438,2]
[339620437,1727754647166,-502.96078615,0.00016438,2]
[339620438,1727754647177,-502.82919255,0.00016438,2]
[339620439,1727754647186,-500.0,0.00016438,2]
[339620440,1727754647196,-500.0,0.00016438,2]
[339620441,1727754647207,-500.0,0.00016438,2]
[339620442,1727754647217,-500.0,0.00016438,2]
[339620443,1727754647227,-500.0,0.00016438,2]
[339620444,1727754647237,-522.97692286,0.00016438,2]
[339620445,1727754647247,-2266.89,0.00016438,2]
[339620446,1727754647258,-502.77199213,0.00016438,2]
[339620447,1727754647269,-501.95630672,0.00016438,2]
[339620448,1727754647279,-507.95947599,0.00016438,2]
[339620449,1727754647289,-502.1549748,0.00016438,2]
[339620450,1727754647299,-500.0,0.00016438,2]
[339620451,1727754647308,-618.81278542,0.00016438,2]
[339620452,1727754647318,-507.18474608,0.00016438,2]
[339620453,1727754647328,-533.52699537,0.00016438,2]
[339620454,1727754647338,-500.0,0.00016438,2]
[339620455,1727754647348,-500.0,0.00016438,2]
[339620456,1727754647358,-501.67965391,0.00016438,2]
[339620457,1727754647367,-500.0,0.00016438,2]
[339620458,1727754647377,-500.0,0.00016438,2]
[339620459,1727754647386,-500.0,0.00016438,2]
[339620460,1727754647397,-500.0,0.00016438,2]
[339620461,1727754647406,-500.0,0.00016438,2]
[339620462,1727754647416,-500.0,0.00016438,2]
[339620463,1727754647426,-500.0,0.00016438,2]
[339620464,1727754647436,-500.0,0.00016438,2]
[339620465,1727754647446,-500.0,0.00016438,2]
[339620466,1727754647456,-500.0,0.00016438,2]
[339620467,1727754647466,-500.0,0.00016438,2]
[339620468,1727754647476,-500.0,0.00016438,2]
[339620469,1727754647486,-500.0,0.00016438,2]
[339620470,1727754647496,-500.0,0.00016438,2]
[339620471,1727754647506,-500.0,0.00016438,2]
[339620472,1727754647516,-500.0,0.00016438,2]
[339620473,1727754647525,-500.0,0.00016438,2]
[339620474,1727754647535,-500.0,0.00016438,2]
[339620475,1727754647544,-500.0,0.00016438,2]
[339620476,1727754647553,-334.42549664,0.00016438,2]
[339620477,1727754647562,-504.55551364,0.00016438,2]
[339620478,1727754647572,-500.0,0.00016438,2]
[339620479,1727754647582,-500.0,0.00016438,2]
[339620480,1727754647592,-501.26492555,0.00016438,2]
[339620481,1727754647602,-500.0,0.00016438,2]
[339620482,1727754647612,-500.0,0.00016438,2]
[339620483,1727754647621,-500.0,0.00016438,2]
[339620484,1727754647631,-502.25757772,0.00016438,2]
[339620485,1727754647640,-500.0,0.00016438,2]
[339620486,1727754647650,-152.67007463,0.00016438,2]
[339620487,1727754647659,-511.17339435,0.00016438,2]
[339620488,1727754647668,-51.7538267,0.00016438,2]
[339620585,1727755832430,-668.61,0.00013698,2]
[339620586,1727755832439,-154.0,0.000139,2]
[339620587,1727755832450,-175.5649283,0.00013907,2]
[339620588,1727755832459,-265.8746603,0.00014089,2]
[339620589,1727755832471,-209.188916,0.00014239,2]
[339620590,1727755832481,-158.259523,0.00014244,2]
[339620591,1727755832491,-154.0,0.0001438,2]
[339620592,1727755832501,-668.61,0.00015068,2]
[339620593,1727755832510,-158.259523,0.00015614,2]
[339620594,1727755832521,-154.0,0.0001582,2]
[339620595,1727755832531,-153.0,0.00015834,2]
[339620596,1727755832540,-153.0,0.00015834,2]
[339620597,1727755832551,-153.0,0.00015834,2]
[339620598,1727755832753,-153.0,0.00015834,2]
[339620599,1727755832764,-310.13,0.000159,2]
[339620600,1727755832774,-7067.94404438,0.00016315,2]
[339620601,1727755832784,-1000.0,0.00016318,2]
[339620602,1727755832793,-1052.82019782,0.00016338,2]
[339620603,1727755832802,-10350.56901276,0.00016338,2]
[339620624,1727755838565,-761.43098725,0.00016338,2]
[339620626,1727755838574,-385.0,0.000164,2]
[339620628,1727755838584,-450.88219036,0.00016417,2]
[339620630,1727755838593,-1078.88930733,0.00016417,2]
[339620660,1727755840351,-3192.48866919,0.00016417,2]
[339620661,1727755840364,-8148.00842768,0.00016417,2]
[339620662,1727755840383,-31890.2842848,0.00016417,2]
[339620663,1727755840398,-24838.7728084,0.00016418,2]
[339620664,1727755840408,-55865.02945838,0.00016418,2]
[339620665,1727755840420,-7915.53911112,0.00016418,2]
[339620666,1727755840430,-454.61935707,0.00016427,2]
[339620667,1727755840440,-500.0,0.00016427,2]
[339620668,1727755840449,-500.0,0.00016427,2]
[339620669,1727755840458,-500.0,0.00016427,2]
[339620670,1727755840468,-500.0,0.00016427,2]
[339620671,1727755840481,-474.03963246,0.00016427,2]
[339620672,1727755840493,-25.96036754,0.00016427,2]
[339620673,1727755840503,-500.0,0.00016427,2]
[339620674,1727755840512,-500.0,0.00016427,2]
[339620675,1727755840523,-499.95371174,0.00016427,2]
[339620676,1727755840533,-500.0,0.00016427,2]
[339620677,1727755840542,-500.0,0.00016427,2]
[339620678,1727755840552,-215.0480937,0.00016427,2]
[339620679,1727755840562,-500.0,0.00016427,2]
[339620680,1727755840572,-209.74013932,0.00016427,2]
[339620681,1727755840584,-290.25986068,0.00016427,2]
[339620682,1727755840593,-216.2531168,0.00016427,2]
[339620704,1727755843458,-153.0,0.00015834,2]
[339620705,1727755843472,-283.7468832,0.00016427,2]
[339620706,1727755843484,-500.0,0.00016427,2]
[339620707,1727755843494,-98.87798829,0.00016427,2]
[339620725,1727756246890,2152.32749039,0.0001,2]
[339621036,1727757032580,-300.0,0.00013999,2]
[339621038,1727757032596,-300.0,0.00013999,2]
[339621040,1727757032605,-362.16719359,0.00014,2]
[339621041,1727757032616,-15070.20000687,0.00014,4]
[339621042,1727757032626,-9142.52877319,0.00014,2]
[339621058,1727757038709,-279.79278161,0.00014,2]
[339621065,1727757038769,-7094.51579337,0.00014,2]
[339621083,1727757040588,-13081.42785915,0.00014,2]
[339621084,1727757040599,-209.188916,0.00014841,2]
[339621085,1727757040608,-158.2595245,0.00014949,2]
[339621086,1727757040619,-420.0,0.00015337,2]
[339621087,1727757040629,-279.11,0.000159,2]
[339621088,1727757040639,-7067.94404438,0.00016023,2]
[339621089,1727757040649,-1000.0,0.00016318,2]
[339621090,1727757040659,-1145.74934169,0.00016338,2]
[339621091,1727757040668,-11798.417084,0.00016417,2]
[339621092,1727757040678,-29899.993115,0.00016417,2]
[339621093,1727757040687,-23596.834168,0.00016418,2]
[339621094,1727757040697,-23937.16249886,0.00016418,2]
[339621095,1727757040718,-11345.36936712,0.00016418,2]
[339621159,1727758225397,10000.0,0.00012,10]
[339621188,1727758231711,-506.87834033,0.000151,2]
[339621190,1727758231722,-300.0,0.00015201,2]
[339621192,1727758231732,-4273.60874184,0.00015202,2]
[339621196,1727758231767,-1474.84059393,0.00015202,2]
[339621345,1727758239738,-3866.09202363,0.00015202,2]
[339621347,1727758239750,-251.2,0.000159,2]
[339621349,1727758239765,-296.87019362,0.0001598,2]
[339621351,1727758239775,-153.0,0.00016,2]
[339621353,1727758239786,-153.0,0.00016,2]
[339621355,1727758239795,-153.0,0.00016,2]
[339621357,1727758239805,-1973.16524634,0.00016308,2]
[339621359,1727758239815,-1000.0,0.00016318,2]
[339621361,1727758239826,-1031.17440753,0.00016338,2]
[339621363,1727758239837,-166.8785108,0.000164,2]
[339621366,1727758239848,-153.0968087,0.000164,2]
[339621368,1727758239859,-153.0,0.000164,2]
[339621370,1727758239870,-153.0,0.000164,2]
[339621372,1727758239880,-153.0,0.000164,2]
[339621374,1727758239890,-153.0,0.000164,2]
[339621376,1727758239901,-153.0,0.000164,2]
[339621378,1727758239911,-153.0,0.000164,2]
[339621380,1727758239922,-153.0,0.000164,2]
[339621382,1727758239932,-153.0,0.000164,2]
[339621384,1727758239943,-153.0,0.000164,2]
[339621387,1727758239953,-153.0,0.000164,2]
[339621389,1727758239963,-153.0,0.000164,2]
[339621391,1727758239974,-153.0,0.000164,2]
[339621393,1727758239985,-209.3051165,0.000164,2]
[339621395,1727758239995,-153.0,0.000164,2]
[339621397,1727758240006,-153.0,0.000164,2]
[339621399,1727758240017,-153.0,0.000164,2]
[339621401,1727758240028,-153.0,0.000164,2]
[339621421,1727758240256,-153.0,0.000164,2]
[339621422,1727758240267,-153.0,0.000164,2]
[339621423,1727758240276,-153.0,0.000164,2]
[339621424,1727758240285,-153.0,0.000164,2]
[339621425,1727758240294,-153.0,0.000164,2]
[339621426,1727758240303,-153.0,0.000164,2]
[339621427,1727758240312,-153.0,0.000164,2]
[339621428,1727758240321,-153.0,0.000164,2]
[339621429,1727758240330,-153.0,0.000164,2]
[339621430,1727758240339,-241.44479573,0.00016408,2]
[339621431,1727758240348,-12205.8175054,0.00016408,2]
[339621432,1727758240358,-28135.8665217,0.00016408,2]
[339621433,1727758240366,-12205.8175054,0.00016417,2]
[339621434,1727758240376,-28135.8665217,0.00016417,2]
[339621436,1727758240386,-424.89996784,0.00016418,2]
[339621438,1727758240395,-612.89,0.00016418,2]
[339621440,1727758240404,-2186.03016865,0.00016418,2]
[339621721,1727758242888,-3601.2939011,0.00016418,2]
[339621960,1727758245830,-18624.31094095,0.00016418,2]
[339621961,1727758245839,-38775.82162128,0.00016418,2]
[339621963,1727758268151,2140.0,0.00021,60]
[339622041,1727759431895,-209.983695,0.00014696,2]
[339622043,1727759431905,-116.49291981,0.00014999,2]
[339622342,1727759439902,-183.50708019,0.00014999,2]
[339622344,1727759439913,-19913.367226,0.00015,2]
[339622346,1727759439924,-169.116464,0.00015425,2]
[339622348,1727759439935,-169.116464,0.00015433,2]
[339622350,1727759439945,-169.116464,0.00015442,2]
[339622353,1727759439956,-169.116464,0.00015451,2]
[339622355,1727759439967,-169.116464,0.00015459,2]
[339622357,1727759439977,-169.116464,0.00015468,2]
[339622359,1727759439988,-169.116464,0.00015476,2]
[339622361,1727759439999,-169.116464,0.00015485,2]
[339622363,1727759440009,-169.116464,0.00015493,2]
[339622366,1727759440020,-169.116464,0.00015502,2]
[339622368,1727759440030,-241.44479573,0.00016,2]
[339622370,1727759440041,-226.08,0.00016,2]
[339622372,1727759440052,-20050.28166819,0.00016,2]
[339622374,1727759440063,-306.0,0.00016,2]
[339622376,1727759440073,-153.0,0.00016,2]
[339622379,1727759440084,-153.0,0.00016,2]
[339622381,1727759440094,-153.0,0.00016,2]
[339622383,1727759440105,-153.0,0.00016,2]
[339622385,1727759440115,-306.0,0.00016,2]
[339622387,1727759440125,-209.983695,0.00016065,2]
[339622389,1727759440135,-153.0,0.00016252,2]
[339622391,1727759440146,-65862.55489113,0.0001628,2]
[339622392,1727759440156,-1000.0,0.00016318,2]
[339622394,1727759440166,-928.05696675,0.00016338,2]
[339622396,1727759440177,-1436.20917067,0.00016338,2]
[339622398,1727759440189,-508.599605,0.00016408,2]
[339622399,1727759440200,-508.599605,0.00016408,2]
[339622401,1727759440211,-1202.82677,0.00016408,2]
[339622403,1727759440223,-151.0,0.00016408,2]
[339622405,1727759440233,-1202.82677,0.00016408,2]
[339622407,1727759440243,-11094.5372633,0.00016408,2]
[339622408,1727759440253,-23383.4887885,0.00016408,2]
[339622409,1727759440264,-11094.5372633,0.00016408,2]
[339622412,1727759440274,-23383.4887885,0.00016408,2]
[339622414,1727759440285,-420.0,0.00016416,2]
[339622416,1727759440295,-500.0,0.00016416,2]
[339622418,1727759440306,-500.0,0.00016416,2]
[339622419,1727759440316,-500.0,0.00016416,2]
[339622420,1727759440326,-500.0,0.00016416,2]
[339622421,1727759440337,-500.0,0.00016416,2]
[339622422,1727759440347,-500.0,0.00016416,2]
[339622423,1727759440357,-500.0,0.00016416,2]
[339622424,1727759440367,-500.0,0.00016416,2]
[339622425,1727759440378,-500.0,0.00016416,2]
[339622426,1727759440388,-500.0,0.00016416,2]
[339622427,1727759440399,-500.0,0.00016416,2]
[339622428,1727759440410,-500.0,0.00016416,2]
[339622429,1727759440421,-500.0,0.00016416,2]
[339622430,1727759440432,-500.0,0.00016416,2]
[339622431,1727759440443,-500.0,0.00016416,2]
[339622432,1727759440453,-500.0,0.00016416,2]
[339622433,1727759440463,-500.0,0.00016416,2]
[339622434,1727759440474,-500.0,0.00016416,2]
[339622435,1727759440484,-500.0,0.00016416,2]
[339622436,1727759440495,-500.0,0.00016416,2]
[339622437,1727759440505,-500.0,0.00016416,2]
[339622438,1727759440515,-500.0,0.00016416,2]
[339622439,1727759440526,-611.00518172,0.00016416,2]
[339622440,1727759440536,-500.0,0.00016416,2]
[339622441,1727759440547,-607.6290839,0.00016417,2]
[339622442,1727759440557,-202.11132138,0.00016417,2]
[339622443,1727759440567,-500.0,0.00016417,2]
[339622444,1727759440578,-192.77045029,0.00016417,2]
[339622445,1727759440588,-500.0,0.00016417,2]
[339622446,1727759440599,-436.24429689,0.00016417,2]
[339622447,1727759440609,-239.20244176,0.00016417,2]
[339622448,1727759440620,-500.0,0.00016417,2]
[339622449,1727759440631,-500.0,0.00016417,2]
[339622450,1727759440641,-500.0,0.00016417,2]
[339622451,1727759440652,-500.0,0.00016417,2]
[339622452,1727759440663,-500.0,0.00016417,2]
[339622453,1727759440674,-500.0,0.00016417,2]
[339622454,1727759440685,-11094.5372633,0.00016418,2]
[339622455,1727759440695,-23383.4887885,0.00016418,2]
[339622456,1727759440707,-612.89,0.00016418,2]
[339622457,1727759440718,-151.0,0.00016418,2]
[339622458,1727759440728,-151.0,0.00016418,2]
[339622459,1727759440738,-151.0,0.00016418,2]
[339622460,1727759440748,-151.0,0.00016418,2]
[339622461,1727759440758,-151.0,0.00016418,2]
[339622462,1727759440769,-151.0,0.00016418,2]
[339622463,1727759440779,-151.0,0.00016418,2]
[339622464,1727759440789,-151.0,0.00016418,2]
[339622465,1727759440799,-151.0,0.00016418,2]
[339622466,1727759440809,-269.652176,0.00016418,2]
[339622467,1727759440820,-831.752445,0.00016418,2]
[339622468,1727759440830,-831.752445,0.00016418,2]
[339622469,1727759440841,-831.752445,0.00016418,2]
[339622470,1727759440851,-831.752445,0.00016418,2]
[339622471,1727759440861,-151.0,0.00016418,2]
[339622472,1727759440870,-157.306913,0.00016418,2]
[339622473,1727759440880,-151.0,0.00016418,2]
[339622474,1727759440889,-151.0,0.00016418,2]
[339622475,1727759441150,-196.205002,0.00016418,2]
[339622476,1727759441170,-196.205002,0.00016418,2]
[339622477,1727759441185,-196.205002,0.00016418,2]
[339622478,1727759441194,-196.205002,0.00016418,2]
[339622479,1727759441203,-304.191515,0.00016418,2]
[339622480,1727759441213,-304.191515,0.00016418,2]
[339622481,1727759441222,-304.191515,0.00016418,2]
[339622482,1727759441232,-304.191515,0.00016418,2]
[339622483,1727759441242,-304.191515,0.00016418,2]
[339622484,1727759441251,-304.191515,0.00016418,2]
[339622485,1727759441262,-151.0,0.00016418,2]
[339622486,1727759441271,-151.0,0.00016418,2]
[339622487,1727759441280,-151.0,0.00016418,2]
[339622488,1727759441290,-151.0,0.00016418,2]
[339622489,1727759441299,-151.0,0.00016418,2]
[339622490,1727759441308,-151.0,0.00016418,2]
[339622491,1727759441317,-965.376055,0.00016418,2]
[339622492,1727759441326,-965.376055,0.00016418,2]
[339622493,1727759441336,-965.376055,0.00016418,2]
[339622494,1727759441345,-965.376055,0.00016418,2]
[339622495,1727759441354,-965.376055,0.00016418,2]
[339622496,1727759441364,-965.376055,0.00016418,2]
[339622497,1727759441373,-151.0,0.00016418,2]
[339622498,1727759441382,-151.0,0.00016418,2]
[339622499,1727759441392,-151.0,0.00016418,2]
[339622500,1727759441401,-508.599605,0.00016418,2]
[339622501,1727759441411,-508.599605,0.00016418,2]
[339622502,1727759441420,-508.599605,0.00016418,2]
[339622503,1727759441429,-508.599605,0.00016418,2]
[339622504,1727759441439,-508.599605,0.00016418,2]
[339622505,1727759441448,-508.599605,0.00016418,2]
[339622506,1727759441461,-1202.82677,0.00016418,2]
[339622507,1727759441470,-151.0,0.00016418,2]
[339622508,1727759441479,-1202.82677,0.00016418,2]
[339622509,1727759441488,-151.0,0.00016418,2]
[339622510,1727759441497,-1202.82677,0.00016418,2]
[339622511,1727759441508,-151.0,0.00016418,2]
[339622512,1727759441517,-1202.82677,0.00016418,2]
[339622513,1727759441526,-1202.82677,0.00016418,2]
[339622514,1727759441535,-1202.82677,0.00016418,2]
[339622515,1727759441545,-14575.3807737,0.00016418,2]
[339622658,1727760004080,3125.62,0.00010101,2]
[339622663,1727760530639,128533.33,2e-05,2]
[339622700,1727760632130,-3227.00818963,0.00013344,2]
[339622701,1727760632145,-700.91859346,0.00013344,2]
[339622702,1727760632159,-2175.13508955,0.00013344,2]
[339622703,1727760632172,-505.08057514,0.00013344,2]
[339622704,1727760632185,-2085.86655788,0.00013344,2]
[339622712,1727760638177,-16205.99099434,0.00013344,2]
[339622713,1727760638187,-219.610974,0.00013699,2]
[339622714,1727760638197,-157.95927466,0.0001373,2]
[339622715,1727760638206,-580.409299,0.00013777,2]
[339622716,1727760638215,-3426.67053271,0.000138,2]
[339622717,1727760638224,-168.011986,0.0001383,2]
[339622718,1727760638234,-160.0,0.000139,2]
[339622719,1727760638243,-168.011986,0.00013974,2]
[339622720,1727760638252,-168.011986,0.00014118,2]
[339622721,1727760638262,-160.0,0.0001422,2]
[339622722,1727760638271,-211.09804771,0.0001422,2]
[339622723,1727760638280,-168.011986,0.00014262,2]
[339622724,1727760638289,-157.95927466,0.00014389,2]
[339622725,1727760638298,-168.011986,0.00014406,2]
[339622726,1727760638307,-580.409299,0.00014462,2]
[339622727,1727760638317,-160.0,0.0001454,2]
[339622728,1727760638328,-168.011986,0.00014551,2]